bitfinex-derivatives/quotes_ETHF0:USTF0_20210702
["timestamp","ask_amount","ask_price","bid_price","bid_amount"]
[1625266681197,1.0,2149.3,2148.3,2.861]
[1625266681699,6.0,2149.3,2148.3,2.861]
[1625266682099,1.0,2149.3,2148.3,2.861]
[1625266682298,2.20527,2148.6,2148.5,2.20527]
[1625266682751,2.20527,2148.6,2148.5,62.753659]
[1625266684251,2.20527,2148.6,2148.5,19.161459]
[1625266684353,4.41054,2148.6,2148.5,19.161459]
[1625266684905,4.41054,2148.6,2148.5,65.868459]
[1625266685054,4.41054,2148.6,2148.5,48.91227]
[1625266685803,4.41054,2148.6,2148.5,46.707]
[1625266686318,4.41054,2148.6,2148.5,63.59762]
[1625266688468,4.41054,2148.6,2148.5,16.89062]
[1625266688824,4.41054,2148.6,2148.3,4.41054]
[1625266689575,4.41054,2148.6,2148.4,20.512616]
[1625266690083,1.0,2149.0,2148.4,20.512616]
[1625266690184,14.9593,2149.8,2148.4,20.512616]
[1625266690285,2.20527,2149.0,2148.8,2.20527]
[1625266690635,2.20527,2149.0,2148.9,16.757752]
[1625266692390,4.41054,2149.0,2148.9,16.757752]
[1625266692792,4.41054,2149.0,2148.3,2.20527]
[1625266692793,8.17264,2149.0,2148.3,2.20527]
[1625266692941,9.17264,2149.0,2148.3,2.20527]
[1625266694451,7.91994,2148.4,2148.3,2.20527]
[1625266695200,7.91994,2148.4,2148.3,18.960742]
[1625266695548,4.41054,2148.4,2148.3,18.960742]
[1625266695898,4.41054,2148.4,2148.3,73.858542]
[1625266696700,1.0,2149.0,2148.3,73.858542]
[1625266696801,1.0,2149.0,2148.3,77.143442]
[1625266696900,1.0,2149.0,2148.3,85.143442]
[1625266697203,1.36666607,2149.7,2148.3,77.143442]
[1625266697301,1.36666607,2149.7,2148.4,1.0]
[1625266697405,1.88499857,2149.8,2148.5,8.0]
[1625266697503,1.36659949,2149.8,2148.6,6.0]
[1625266697604,1.36659949,2149.8,2148.8,1.15]
[1625266697703,1.36659949,2149.8,2148.9,9.0]
[1625266697805,1.36659949,2149.8,2149.0,5.0]
[1625266697957,0.02,2150.0,2149.1,9.0]
[1625266698104,0.02,2150.0,2149.1,25.926707]
[1625266698305,0.02,2150.0,2149.1,30.926707]
[1625266698404,0.02,2150.0,2149.9,4.41054]
[1625266698506,0.02,2150.0,2149.9,16.53164]
[1625266698756,2.20527,2150.8,2149.9,33.545905]
[1625266698863,1.36538679,2151.5,2149.9,38.545905]
[1625266698956,1.36538679,2151.5,2151.4,42.0939]
[1625266699058,11.58569059,2152.6,2151.4,43.0939]
[1625266699059,1.36510378,2151.9,2151.4,43.0939]
[1625266699165,1.36510378,2151.9,2151.4,1.0]
[1625266699306,4.3683321,2152.6,2151.4,16.860179]
[1625266699412,6.62070893,2153.0,2151.5,8.0]
[1625266699508,1.36507172,2152.0,2151.5,0.1713]
[1625266699657,6.62070893,2153.0,2151.5,0.1713]
[1625266699758,5.25751891,2153.0,2151.5,0.1713]
[1625266699860,5.25751891,2153.0,2152.3,49.2198]
[1625266700011,1.36337238,2154.2,2152.3,51.5157]
[1625266700112,22.88269268,2155.1,2152.4,16.871774]
[1625266700264,22.88269268,2155.1,2152.5,1.0]
[1625266700366,27.64169268,2155.1,2152.5,1.0]
[1625266700462,12.37993893,2155.0,2153.2,2.20527]
[1625266700812,12.37993893,2155.0,2153.3,16.969461]
[1625266700911,12.37993893,2155.0,2153.6,49.213]
[1625266701214,19.4699,2155.1,2153.7,16.967512]
[1625266701315,19.4699,2155.1,2153.7,17.967512]
[1625266701414,19.4699,2155.1,2153.7,16.967512]
[1625266701524,4.759,2155.1,2153.7,16.967512]
[1625266701814,0.99191346,2155.3,2153.7,16.967512]
[1625266702167,0.99191346,2155.3,2153.7,24.967512]
[1625266702315,0.99191346,2155.3,2153.8,1.0]
[1625266702416,0.99191346,2155.3,2155.2,4.41054]
[1625266702514,0.41251346,2155.3,2155.2,8.18844]
[1625266702666,2.20527,2156.5,2155.2,13.18844]
[1625266702768,2.20527,2156.5,2155.2,30.11113]
[1625266702869,2.20527,2156.5,2156.2,47.2809]
[1625266702970,1.02265177,2157.2,2156.3,1.0]
[1625266703168,1.02265177,2157.2,2156.3,16.814654]
[1625266703570,1.02265177,2157.2,2155.2,4.41054]
[1625266703669,1.02265177,2157.2,2155.7,1.15]
[1625266703768,1.02265177,2157.2,2155.7,0.0001]
[1625266703868,5.50385676,2157.1,2155.7,0.0001]
[1625266703968,5.85701278,2157.1,2153.8,0.9375]
[1625266704067,5.85701278,2157.1,2151.2,1.1]
[1625266704167,5.35320487,2157.0,2151.2,1.1]
[1625266704368,0.35323059,2156.9,2151.3,9.0]
[1625266704468,2.20527,2154.1,2151.3,1.0]
[1625266704620,4.81047,2154.1,2153.7,16.824433]
[1625266704823,4.81047,2154.1,2152.9,16.703977]
[1625266704922,4.81047,2154.1,2153.0,1.0]
[1625266705324,4.81047,2154.1,2153.1,1.0]
[1625266705440,4.81047,2154.1,2153.1,17.891575]
[1625266705539,2.20527,2154.1,2153.1,21.629475]
[1625266705688,6.85623926,2156.6,2153.1,21.629475]
[1625266705790,5.0,2156.7,2153.1,4.7379]
[1625266705993,14.2683,2156.8,2153.1,4.7379]
[1625266706138,5.50641915,2156.6,2153.2,21.732937]
[1625266706241,5.50641915,2156.6,2153.3,1.0]
[1625266706391,5.50641915,2156.6,2153.6,1.15]
[1625266706489,2.20527,2155.0,2154.8,2.20527]
[1625266706891,2.20527,2155.0,2154.9,16.809968]
[1625266707141,2.20527,2155.0,2154.8,2.20527]
[1625266707841,2.20527,2155.0,2154.6,2.20527]
[1625266708192,2.20527,2155.2,2154.6,2.20527]
[1625266708345,14.2683,2156.8,2154.7,1.0]
[1625266708443,2.20527,2156.4,2156.1,2.20527]
[1625266709044,2.20527,2156.4,2155.9,2.20527]
[1625266710247,2.20527,2156.4,2154.5,58.4703]
[1625266710398,4.94827,2156.4,2154.5,1.0]
[1625266710502,5.39177,2155.5,2155.4,2.20527]
[1625266710700,5.39177,2155.5,2154.0,1.0]
[1625266710802,5.39177,2155.5,2153.0,14.6131]
[1625266711003,5.39177,2155.5,2150.0,6.01800749]
[1625266711101,5.39177,2155.5,2150.9,14.511]
[1625266711301,5.39177,2155.5,2152.8,19.971874]
[1625266711554,5.39177,2155.5,2153.2,1.15]
[1625266711753,5.39177,2155.5,2153.3,1.0]
[1625266711856,5.39177,2155.5,2153.3,17.931626]
[1625266712454,2.20527,2154.6,2154.4,2.20527]
[1625266712606,4.73897,2154.6,2154.4,2.20527]
[1625266712704,2.5337,2154.6,2154.4,2.20527]
[1625266713058,2.5337,2154.6,2154.2,2.20527]
[1625266714464,2.5337,2154.6,2154.5,2.20527]
[1625266714563,2.20527,2155.1,2154.5,2.20527]
[1625266714862,2.20527,2155.1,2154.5,3.20527]
[1625266714964,2.20527,2155.1,2154.5,4.82077]
[1625266715214,2.20527,2155.1,2154.6,16.944487]
[1625266715714,2.20527,2155.1,2154.5,2.20527]
[1625266716412,2.5842,2155.9,2154.6,16.912316]
[1625266716511,2.5842,2155.9,2155.5,2.20527]
[1625266716863,2.5842,2155.9,2155.6,16.791523]
[1625266717164,2.20527,2156.3,2155.5,2.20527]
[1625266717264,2.7705,2155.9,2155.5,2.20527]
[1625266718014,0.0001,2155.9,2155.5,2.20527]
[1625266718119,0.0001,2155.9,2155.6,1.0]
[1625266718215,1.02265177,2157.2,2155.6,3.4982]
[1625266718518,2.20527,2156.6,2156.5,2.20527]
[1625266718817,1.02265177,2157.2,2156.5,2.20527]
[1625266719667,1.02265177,2157.2,2156.5,5.80747]
[1625266719920,19.3372,2159.0,2156.6,16.963231]
[1625266720018,19.3372,2159.0,2156.7,1.0]
[1625266720119,0.34678057,2158.9,2156.7,1.0]
[1625266720219,0.34678057,2158.9,2157.0,1.15]
[1625266720369,0.34678057,2158.9,2157.1,3.9746]
[1625266720569,2.20527,2158.8,2158.4,2.20527]
[1625266720668,0.34573126,2158.7,2158.4,2.20527]
[1625266720968,2.20527,2158.8,2158.4,2.20527]
[1625266721321,0.34565254,2158.7,2158.4,2.20527]
[1625266721571,2.20527,2158.8,2158.4,2.20527]
[1625266721721,0.34565382,2158.7,2158.2,2.20527]
[1625266721871,2.20527,2158.8,2158.2,2.20527]
[1625266722573,2.20527,2158.8,2158.7,2.20527]
[1625266723123,2.20527,2158.8,2158.2,2.20527]
[1625266723573,2.20527,2158.8,2157.4,50.4107]
[1625266723723,5.29497,2158.8,2155.0,8.0]
[1625266724173,5.29497,2158.8,2157.1,1.0]
[1625266724272,5.29497,2158.8,2157.1,16.80166]
[1625266724576,2.20527,2157.9,2157.8,2.20527]
[1625266724723,5.01217,2157.9,2154.7,1.1]
[1625266724875,5.01217,2157.9,2150.5,0.9419]
[1625266725075,5.01217,2157.9,2153.3,1.1]
[1625266725325,5.01217,2157.9,2154.7,17.781768]
[1625266725475,5.01217,2157.9,2155.1,1.15]
[1625266725633,5.01217,2157.9,2155.2,4.3263]
[1625266725826,5.01217,2157.9,2155.3,16.884607]
[1625266725977,5.01217,2157.9,2155.4,1.0]
[1625266726228,5.01217,2157.9,2155.5,16.916873]
[1625266726628,2.8069,2157.9,2156.5,2.20527]
[1625266726728,7.5659,2157.9,2156.5,2.20527]
[1625266727229,2.8069,2157.9,2156.5,2.20527]
[1625266727679,2.8069,2157.9,2156.3,2.20527]
[1625266727779,2.8069,2157.9,2149.4,4.73688526]
[1625266727980,7.8069,2157.9,2152.9,8.0]
[1625266728081,2.8069,2157.9,2152.9,8.0]
[1625266728584,2.20527,2156.1,2156.0,2.20527]
[1625266728686,5.20407,2156.1,2156.0,2.20527]
[1625266728795,5.20407,2156.1,2155.7,2.20527]
[1625266728945,5.20407,2156.1,2151.9,14.6547]
[1625266729046,5.20407,2156.1,2151.8,1.1]
[1625266729196,5.20407,2156.1,2152.0,15.3801]
[1625266729598,5.20407,2156.1,2152.8,17.945611]
[1625266729895,5.20407,2156.1,2153.2,1.15]
[1625266729999,5.0,2156.0,2153.3,1.0]
[1625266730099,5.0,2156.0,2153.3,17.74169]
[1625266730497,5.20407,2156.1,2153.3,17.74169]
[1625266730600,5.20407,2156.1,2154.8,2.20527]
[1625266730601,2.20527,2154.9,2154.8,2.20527]
[1625266730697,2.20527,2154.9,2154.8,3.20527]
[1625266730899,2.20527,2154.9,2154.8,2.20527]
[1625266731199,2.20527,2154.9,2153.2,1.15]
[1625266731807,2.20527,2154.9,2153.3,16.953496]
[1625266731956,2.20527,2154.9,2153.4,1.0]
[1625266732260,2.20527,2154.9,2153.5,16.820583]
[1625266732408,2.20527,2154.9,2153.6,1.0]
[1625266732559,2.20527,2154.9,2153.7,16.772244]
[1625266732708,2.20527,2154.9,2154.6,2.20527]
[1625266732860,2.20527,2154.9,2154.8,48.1204]
[1625266733010,2.20527,2154.9,2154.8,49.1204]
[1625266733258,2.20527,2154.9,2154.8,64.957636]
[1625266733458,2.20527,2154.9,2154.8,65.957636]
[1625266734062,2.20527,2154.9,2154.8,64.957636]
[1625266734162,2.20527,2154.9,2154.8,48.1204]
[1625266735367,4.66267,2154.9,2154.7,2.20527]
[1625266736172,4.66267,2154.9,2151.6,1.1]
[1625266736522,9.66267,2154.9,2152.8,1.0]
[1625266736623,2.20527,2154.0,2153.9,2.20527]
[1625266736824,5.29347,2154.0,2153.7,2.20527]
[1625266738124,5.29347,2154.0,2152.8,1.0]
[1625266738226,5.29347,2154.0,2151.7,5.0]
[1625266738326,5.29347,2154.0,2152.1,1.0]
[1625266738626,5.29347,2154.0,2153.5,2.20527]
[1625266738826,5.29347,2154.0,2153.3,2.20527]
[1625266739328,5.29347,2154.0,2153.4,1.0]
[1625266739426,5.29347,2154.0,2153.3,2.20527]
[1625266739727,5.29347,2154.0,2150.8,83.863]
[1625266740227,10.29347,2154.0,2150.8,83.863]
[1625266740329,10.29347,2154.0,2150.9,16.951273]
[1625266740482,10.29347,2154.0,2150.9,17.951273]
[1625266740677,2.20527,2152.6,2152.3,2.20527]
[1625266740778,2.20527,2152.8,2152.4,1.0]
[1625266741332,1.10361611,2152.8,2152.5,16.892298]
[1625266741481,1.10361611,2152.8,2152.6,1.0]
[1625266741632,1.10361611,2152.8,2152.5,16.892298]
[1625266741730,1.10361611,2152.8,2152.3,2.20527]
[1625266741833,1.10361611,2152.8,2152.4,1.0]
[1625266742033,29.906,2154.8,2152.4,3.8266]
[1625266742235,29.906,2154.8,2152.4,8.8266]
[1625266742335,14.5994,2154.8,2152.5,16.811129]
[1625266742441,14.5994,2154.8,2152.6,1.0]
[1625266742585,14.5994,2154.8,2153.5,39.9827]
[1625266742686,2.20527,2154.5,2154.4,2.20527]
[1625266742811,5.0,2156.4,2154.4,2.20527]
[1625266743006,0.34639619,2156.3,2154.4,2.20527]
[1625266744710,2.20527,2154.5,2154.4,2.20527]
[1625266745108,2.4216,2154.9,2154.4,2.20527]
[1625266746613,6.0,2156.3,2154.4,2.20527]
[1625266746716,2.20527,2155.0,2154.9,2.20527]
[1625266747114,5.0,2156.1,2154.9,2.20527]
[1625266747216,55.5183,2157.5,2154.9,2.20527]
[1625266747317,5.0,2156.4,2154.9,2.20527]
[1625266748770,4.41054,2155.0,2154.9,2.20527]
[1625266749825,9.41054,2155.0,2153.5,39.9827]
[1625266749922,4.41054,2155.0,2153.5,39.9827]
[1625266750026,9.41054,2155.0,2153.5,39.9827]
[1625266750773,2.20527,2153.7,2153.6,2.20527]
[1625266750874,4.84507,2153.7,2153.6,2.20527]
[1625266751073,2.6398,2153.7,2153.6,2.20527]
[1625266751532,2.6398,2153.7,2153.4,2.20527]
[1625266751676,2.6398,2153.7,2151.8,5.0]
[1625266752174,2.6398,2153.7,2151.9,16.889121]
[1625266752276,1.0,2154.4,2152.0,8.0]
[1625266752375,2.535,2155.3,2152.9,43.7659]
[1625266752527,14.0814,2156.1,2152.9,46.251]
[1625266752624,14.0814,2156.1,2153.0,16.88835]
[1625266752724,2.20527,2154.9,2154.8,2.20527]
[1625266753376,3.6359,2157.2,2154.8,2.20527]
[1625266753476,3.6359,2157.2,2155.1,46.5083]
[1625266754278,5.0,2157.0,2155.1,46.5083]
[1625266754380,3.6359,2157.2,2155.1,46.5083]
[1625266754780,2.20527,2155.3,2155.1,46.5083]
[1625266755480,2.20527,2155.5,2155.1,46.5083]
[1625266755580,2.20527,2155.5,2155.1,49.9913]
[1625266755834,2.20527,2155.5,2155.2,16.855944]
[1625266756229,2.20527,2155.5,2155.1,49.9913]
[1625266756832,2.20527,2155.5,2155.4,4.41054]
[1625266757083,2.20527,2155.5,2155.4,21.167938]
[1625266757183,2.20527,2155.8,2155.4,21.167938]
[1625266757588,1.0,2157.6,2155.4,21.167938]
[1625266757686,30.1859,2157.7,2155.5,1.0]
[1625266757687,29.7949,2157.7,2155.5,1.0]
[1625266757840,15.0468,2157.7,2155.5,1.0]
[1625266757940,15.0468,2157.7,2155.6,16.75519]
[1625266758089,15.0468,2157.7,2155.7,1.0]
[1625266758190,15.0468,2157.7,2155.9,1.15]
[1625266758290,15.0468,2157.7,2156.0,1.0]
[1625266758542,15.0468,2157.7,2156.1,16.81794]
[1625266758649,15.0468,2157.7,2156.2,1.0]
[1625266758790,2.20527,2157.4,2157.3,2.20527]
[1625266758945,2.20527,2157.4,2157.0,2.20527]
[1625266759494,2.20527,2157.4,2155.9,1.15]
[1625266759643,5.93577,2157.4,2154.4,5.0]
[1625266760096,5.93577,2157.4,2155.2,17.896361]
[1625266760759,2.20527,2156.9,2156.6,2.20527]
[1625266761610,2.20527,2157.4,2156.6,2.20527]
[1625266761710,2.20527,2157.4,2156.6,5.08397]
[1625266761811,14.2155,2159.3,2156.7,1.0]
[1625266762613,14.2155,2159.3,2156.8,16.747503]
[1625266762762,14.2155,2159.3,2156.9,1.0]
[1625266762864,2.20527,2158.3,2157.9,2.20527]
[1625266763265,2.20527,2158.3,2157.5,45.4096]
[1625266763620,2.20527,2158.3,2157.5,1.0]
[1625266763718,2.20527,2158.3,2155.6,8.7532]
[1625266763818,2.20527,2158.3,2156.7,1.0]
[1625266764469,7.20527,2158.3,2156.7,1.0]
[1625266764671,7.20527,2158.3,2155.1,46.5083]
[1625266764820,2.20527,2156.6,2156.5,2.20527]
[1625266764970,5.15687,2156.6,2156.5,3.20527]
[1625266765122,5.15687,2156.6,2156.5,2.20527]
[1625266765920,2.9516,2156.6,2156.5,3.20527]
[1625266766024,2.721,2157.2,2156.5,3.20527]
[1625266766371,2.721,2157.2,2156.5,2.20527]
[1625266766871,4.85267,2156.6,2156.5,2.20527]
[1625266767525,2.6474,2156.6,2156.5,2.20527]
[1625266768022,2.6474,2156.6,2156.5,3.20527]
[1625266768172,7.9273,2157.7,2156.5,3.20527]
[1625266768823,2.20527,2157.1,2157.0,2.20527]
[1625266769227,5.80787,2157.1,2156.5,2.20527]
[1625266769327,5.80787,2157.1,2155.1,46.5083]
[1625266769926,5.80787,2157.1,2155.2,16.971283]
[1625266770029,5.80787,2157.1,2155.3,1.0]
[1625266770377,5.80787,2157.1,2155.4,17.817231]
[1625266770478,5.80787,2157.1,2155.4,18.817231]
[1625266770679,5.80787,2157.1,2155.4,2.1]
[1625266770832,2.20527,2155.7,2155.6,2.20527]
[1625266770929,1.0,2157.0,2155.6,2.20527]
[1625266771028,3.1683,2157.7,2155.6,5.14347]
[1625266771128,14.5837,2158.4,2155.6,5.14347]
[1625266771829,21.5697,2158.4,2155.6,5.14347]
[1625266771931,5.0,2158.3,2155.6,5.14347]
[1625266772229,5.0,2158.3,2155.6,2.20527]
[1625266772835,2.20527,2156.3,2156.2,2.20527]
[1625266774340,2.20527,2156.3,2155.6,2.20527]
[1625266774891,2.20527,2155.7,2155.6,2.20527]
[1625266774991,5.84467,2155.7,2155.6,2.20527]
[1625266775342,5.84467,2155.7,2155.2,2.20527]
[1625266776995,5.84467,2155.7,2155.6,2.20527]
[1625266777797,5.84467,2155.7,2155.2,2.20527]
[1625266778908,5.84467,2155.7,2155.5,2.20527]
[1625266780262,16.243,2157.0,2155.5,2.20527]
[1625266780350,15.243,2157.0,2155.5,2.20527]
[1625266780914,15.243,2157.0,2156.9,2.20527]
[1625266781011,15.243,2157.0,2156.9,49.80177]
[1625266781112,15.243,2157.0,2156.9,5.99857]
[1625266782172,15.243,2157.0,2156.9,2.20527]
[1625266782321,17.8852,2157.0,2154.7,14.9689]
[1625266782919,2.20527,2156.3,2156.2,2.20527]
[1625266783021,5.16617,2156.3,2156.2,2.20527]
[1625266783169,5.16617,2156.3,2154.8,16.74742]
[1625266783272,5.16617,2156.3,2154.7,14.9689]
[1625266783870,5.16617,2156.3,2154.8,16.887635]
[1625266784920,5.16617,2156.3,2156.1,2.20527]
[1625266785824,2.9609,2156.3,2156.1,2.20527]
[1625266785924,15.243,2157.0,2156.1,5.67627]
[1625266786024,15.243,2157.0,2156.6,46.3774]
[1625266786976,15.243,2157.0,2156.9,4.41054]
[1625266787427,18.2423,2157.0,2154.7,14.9689]
[1625266788047,18.2423,2157.0,2154.8,16.936679]
[1625266788802,23.2423,2157.0,2154.8,16.936679]
[1625266789001,2.20527,2156.1,2155.5,2.20527]
[1625266789102,5.07487,2156.1,2155.5,2.20527]
[1625266790019,2.20527,2156.3,2155.5,2.20527]
[1625266790119,2.20527,2156.3,2155.5,5.59907]
[1625266790420,2.20527,2156.3,2155.6,16.924569]
[1625266790819,15.243,2157.0,2155.6,16.924569]
[1625266790916,15.243,2157.0,2156.5,2.20527]
[1625266791017,2.20527,2156.6,2156.5,2.20527]
[1625266791520,1.37535817,2156.9,2156.5,2.20527]
[1625266791673,15.243,2157.0,2156.5,5.06817]
[1625266792922,15.243,2157.0,2156.9,57.1307]
[1625266793019,15.243,2157.0,2156.9,59.33597]
[1625266793322,15.243,2157.0,2156.9,2.20527]
[1625266794776,15.243,2157.0,2156.5,2.20527]
[1625266794877,19.0348,2157.0,2156.5,2.20527]
[1625266795027,2.20527,2156.6,2156.5,2.20527]
[1625266795328,2.20527,2156.6,2154.7,14.9689]
[1625266795977,2.20527,2156.6,2154.8,16.72021]
[1625266797029,2.20527,2156.6,2156.2,2.20527]
[1625266797231,19.0348,2157.0,2156.2,2.20527]
[1625266797732,19.0348,2157.0,2156.5,44.9178]
[1625266798132,19.0348,2157.0,2156.2,2.20527]
[1625266798986,21.24007,2157.0,2156.6,2.20527]
[1625266799388,1.37531081,2156.9,2156.6,2.20527]
[1625266800986,1.37531081,2156.9,2156.8,2.20527]
[1625266801288,15.243,2157.0,2156.8,2.20527]
[1625266803596,2.20527,2157.7,2156.8,5.33087]
[1625266803899,1.37481792,2157.6,2156.9,16.716156]
[1625266804247,1.0,2158.3,2156.9,16.716156]
[1625266804347,6.85962644,2158.4,2156.9,16.716156]
[1625266804647,1.36040955,2158.4,2156.9,16.716156]
[1625266805048,1.36040955,2158.4,2158.3,4.41054]
[1625266805402,6.85962195,2158.4,2158.3,3.31081527]
[1625266805498,8.23442505,2158.4,2156.8,3.1256]
[1625266805609,11.08582505,2158.4,2156.4,45.5326]
[1625266805856,1.36041661,2158.3,2156.4,45.5326]
[1625266806200,8.23459691,2158.3,2156.5,16.798079]
[1625266806300,8.23459691,2158.3,2156.5,19.623279]
[1625266806550,6.8741803,2158.3,2156.5,19.623279]
[1625266807053,2.20527,2158.0,2157.8,2.20527]
[1625266807251,2.20527,2158.0,2157.6,2.20527]
[1625266807352,1.37468082,2157.9,2157.6,2.20527]
[1625266808453,2.20527,2158.0,2157.6,2.20527]
[1625266809103,4.41054,2158.0,2157.6,2.20527]
[1625266809253,1.37471815,2157.9,2157.6,2.20527]
[1625266809655,4.27811815,2157.9,2157.4,2.20527]
[1625266809755,4.27811815,2157.9,2156.0,14.831]
[1625266810007,1.37488092,2157.8,2156.0,14.831]
[1625266810356,6.87521138,2157.8,2156.0,14.831]
[1625266810558,6.87521138,2157.8,2154.8,1.0]
[1625266810654,1.0,2157.7,2154.3,4.759]
[1625266810807,2.35987197,2157.7,2154.4,15.2542]
[1625266811004,5.0,2157.6,2154.7,5.0]
[1625266811107,5.77867,2156.2,2156.1,2.20527]
[1625266812369,5.77867,2156.2,2155.9,2.20527]
[1625266814224,5.77867,2156.2,2154.4,15.2542]
[1625266814421,1.3757406,2156.1,2154.4,15.2542]
[1625266814522,6.3757406,2156.1,2152.5,3.16443865]
[1625266814626,1.0,2156.0,2152.1,3.1691514]
[1625266814825,7.8805759,2156.0,2153.4,16.733885]
[1625266814975,5.0,2155.9,2153.4,16.733885]
[1625266815077,7.8805759,2156.0,2154.7,2.20527]
[1625266815078,2.20527,2155.0,2154.7,2.20527]
[1625266815180,5.30967,2155.0,2154.5,2.20527]
[1625266815578,5.30967,2155.0,2153.0,14.8934]
[1625266815681,6.30967,2155.0,2153.5,53.1715]
[1625266815780,5.30967,2155.0,2153.5,53.1715]
[1625266816285,5.30967,2155.0,2153.6,16.951276]
[1625266816836,5.30967,2155.0,2153.1,16.987568]
[1625266817034,2.20527,2154.0,2153.9,2.20527]
[1625266817135,4.60377,2154.0,2153.9,2.20527]
[1625266818037,4.60377,2154.0,2153.9,7e-05]
[1625266818136,4.60377,2154.0,2153.7,2.20527]
[1625266818137,4.60377,2154.0,2151.8,1.0]
[1625266818238,5.60377,2154.0,2151.2,5.0]
[1625266818338,5.60377,2154.0,2151.0,3.17974914]
[1625266818441,5.60377,2154.0,2150.9,14.9489]
[1625266818537,5.60377,2154.0,2151.0,5.0]
[1625266818840,5.60377,2154.0,2151.0,22.003707]
[1625266819142,2.20527,2153.2,2153.1,2.20527]
[1625266819242,5.03807,2153.2,2153.1,2.20527]
[1625266819592,5.03807,2153.2,2152.8,2.20527]
[1625266819742,5.03807,2153.2,2151.5,1.15]
[1625266820248,5.03807,2153.2,2151.6,16.794251]
[1625266821003,5.03807,2153.2,2151.6,21.794251]
[1625266821150,5.03807,2153.2,2153.1,4.41054]
[1625266821300,5.03807,2153.2,2151.6,21.794251]
[1625266821502,5.03807,2153.2,2151.6,5.0]
[1625266822000,5.03807,2153.2,2151.7,16.765377]
[1625266822150,5.03807,2153.2,2151.8,5.0]
[1625266822353,2.8328,2153.2,2151.8,5.0]
[1625266822456,2.8328,2153.2,2152.1,1.15]
[1625266822753,2.8328,2153.2,2152.2,16.982472]
[1625266823157,2.8328,2153.2,2153.1,2.20527]
[1625266823357,2.8328,2153.2,2152.2,16.982472]
[1625266823458,2.8328,2153.2,2153.1,16.811983]
[1625266823968,2.8328,2153.2,2152.0,16.867797]
[1625266824772,2.20527,2153.4,2152.1,5.0]
[1625266825022,2.20527,2153.4,2152.2,16.745683]
[1625266825124,2.20527,2153.4,2153.2,2.20527]
[1625266825433,2.20527,2153.4,2153.3,16.75175]
[1625266826629,1.0,2154.8,2153.5,47.2052]
[1625266826730,29.0184,2154.9,2153.5,47.2052]
[1625266826931,29.0184,2154.9,2153.6,16.865272]
[1625266826932,14.9095,2154.9,2153.6,16.865272]
[1625266827086,2.20527,2154.4,2153.9,2.20527]
[1625266827432,2.20527,2154.4,2154.0,16.974599]
[1625266829139,2.20527,2154.1,2154.0,16.974599]
[1625266829491,2.5958,2154.2,2154.0,16.974599]
[1625266830191,14.9095,2154.9,2154.0,16.974599]
[1625266831147,14.9095,2154.9,2154.7,2.20527]
[1625266831444,14.9095,2154.9,2154.8,16.788521]
[1625266835732,2.20527,2155.3,2154.8,16.788521]
[1625266836834,1.0,2156.5,2154.8,16.788521]
[1625266836935,14.8948,2156.6,2154.8,16.788521]
[1625266837185,2.20527,2156.1,2156.0,2.20527]
[1625266837939,2.20527,2156.1,2154.1,5.0]
[1625266838039,1.0,2156.0,2154.1,5.0]
[1625266838438,1.0,2156.0,2153.2,9.1584]
[1625266838537,1.0,2156.0,2153.6,5.0]
[1625266838642,1.0,2156.0,2154.2,16.922442]
[1625266838893,1.0,2156.0,2154.0,20.726591]
[1625266839041,1.0,2156.0,2154.1,16.935635]
[1625266839138,1.0,2156.0,2155.2,2.20527]
[1625266839238,2.20527,2155.3,2155.2,2.20527]
[1625266839440,2.20527,2155.3,2155.2,18.904362]
[1625266839791,2.455,2156.1,2155.2,18.904362]
[1625266839892,14.8948,2156.6,2155.2,18.904362]
[1625266841194,2.20527,2155.9,2155.8,2.20527]
[1625266841497,3.0692,2156.3,2155.8,2.20527]
[1625266841595,3.0692,2156.3,2155.9,16.878366]
[1625266841850,3.0692,2156.3,2155.8,18.931895]
[1625266841996,3.0692,2156.3,2155.8,2.20527]
[1625266842197,3.0692,2156.3,2155.9,16.890162]
[1625266842500,3.0692,2156.3,2155.2,2.20527]
[1625266843100,3.0692,2156.3,2155.3,16.940149]
[1625266843201,4.41054,2155.4,2155.3,16.940149]
[1625266843301,7.19964,2155.4,2155.3,16.940149]
[1625266844653,2.7891,2155.4,2155.3,16.940149]
[1625266844753,3.0692,2156.3,2155.3,16.940149]
[1625266844854,3.5853,2155.7,2155.3,16.940149]
[1625266845304,3.5853,2155.7,2155.6,2.20527]
[1625266845506,3.5853,2155.7,2155.6,18.970094]
[1625266846757,1.0,2156.5,2155.6,18.970094]
[1625266846908,14.8948,2156.6,2155.6,18.970094]
[1625266847258,2.20527,2156.4,2155.6,18.970094]
[1625266848159,1.37548461,2156.3,2155.6,18.970094]
[1625266848259,1.37548461,2156.3,2155.6,2.20527]
[1625266848470,1.37548461,2156.3,2155.2,2.20527]
[1625266848882,6.87810493,2156.3,2155.2,2.20527]
[1625266848983,5.0,2156.2,2153.9,14.2356]
[1625266849134,6.0,2156.2,2153.9,14.2356]
[1625266849235,2.20527,2154.4,2154.2,2.20527]
[1625266849334,4.58667,2154.4,2154.2,2.20527]
[1625266849633,4.58667,2154.4,2154.3,16.76384]
[1625266849735,2.3814,2154.4,2154.3,16.76384]